bitfinex/quotes_BTCUSD_20251214
["timestamp","ask_amount","ask_price","bid_price","bid_amount"]
[1765721381656,0.91172612,89447.0,89446.0,0.00126964]
[1765721381855,0.91372612,89447.0,89446.0,0.00226964]
[1765721382056,0.8032185,89447.0,89446.0,0.00226964]
[1765721382271,0.78013761,89447.0,89446.0,0.00226964]
[1765721386518,0.66807207,89447.0,89446.0,0.00226964]
[1765721386655,0.65043207,89447.0,89446.0,0.00226964]
[1765721386855,0.66807207,89447.0,89446.0,0.00226964]
[1765721389684,0.78013761,89447.0,89446.0,0.00226964]
[1765721390953,0.76249761,89447.0,89446.0,0.00226964]
[1765721391172,0.78013761,89447.0,89446.0,0.00226964]
[1765721392971,0.89064523,89447.0,89446.0,0.00226964]
[1765721393152,0.91471677,89447.0,89446.0,0.00226964]
[1765721393354,0.80420915,89447.0,89446.0,0.00226964]
[1765721393771,0.78013761,89447.0,89446.0,0.00226964]
[1765721395009,0.76249761,89447.0,89446.0,0.00226964]
[1765721395222,0.78013761,89447.0,89446.0,0.00226964]
[1765721398223,0.80423164,89447.0,89446.0,0.00226964]
[1765721399254,0.32834771,89447.0,89446.0,0.00226964]
[1765721399404,0.003,89447.0,89446.0,0.2348611]
[1765721399606,0.003,89447.0,89446.0,0.2496111]
[1765721399819,0.003,89447.0,89446.0,0.2672511]
[1765721400022,0.002,89447.0,89446.0,0.2525011]
[1765721400228,0.01764,89454.0,89453.0,0.22358109]
[1765721400532,0.01764,89454.0,89453.0,0.23994396]
[1765721400749,0.01764,89454.0,89453.0,0.22519396]
[1765721401210,0.03353,89454.0,89453.0,0.22519396]
[1765721401430,0.06143,89454.0,89453.0,0.22619396]
[1765721401641,0.06143,89454.0,89453.0,0.00261287]
[1765721402734,0.04279,89454.0,89453.0,0.00161287]
[1765721402943,0.04079,89454.0,89453.0,0.00161287]
[1765721403356,0.04579,89454.0,89453.0,0.00361287]
[1765721403972,0.04379,89454.0,89453.0,0.00261287]
[1765721404186,0.04779,89454.0,89453.0,0.00361287]
[1765721404930,0.04479,89454.0,89453.0,0.00261287]
[1765721405352,0.04879,89454.0,89453.0,0.00361287]
[1765721405738,0.04879,89454.0,89453.0,0.01506473]
[1765721407411,0.06643,89454.0,89453.0,0.01506473]
[1765721407613,0.29000859,89454.0,89453.0,0.01506473]
[1765721417902,0.29000859,89454.0,89453.0,0.00388518]
[1765721418482,0.29000859,89454.0,89453.0,0.00227231]
[1765721431436,0.34002698,89454.0,89453.0,0.00227231]
[1765721432122,0.33202698,89454.0,89453.0,0.00027231]
[1765721432460,0.34202698,89454.0,89453.0,0.00227231]
[1765721440037,0.4525346,89454.0,89453.0,0.00227231]
[1765721440373,0.34202698,89454.0,89453.0,0.00227231]
[1765721440986,0.35320891,89454.0,89453.0,0.00227231]
[1765721441193,0.34820891,89454.0,89453.0,0.00127231]
[1765721441400,0.34420891,89454.0,89453.0,0.00127231]
[1765721446653,0.92941131,89454.0,89453.0,0.00127231]
[1765721446905,0.90321309,89454.0,89453.0,0.00127231]
[1765721453732,0.87910891,89454.0,89453.0,0.00127231]
[1765721454462,0.90321084,89454.0,89453.0,0.00127231]
[1765721462401,0.88557084,89454.0,89453.0,0.00127231]
[1765721462731,0.90321084,89454.0,89453.0,0.00127231]
[1765721463230,0.90221084,89454.0,89453.0,0.00027231]
[1765721463634,0.90321084,89454.0,89453.0,0.00327231]
[1765721463785,0.90421084,89454.0,89453.0,0.00727231]
[1765721472891,0.56349245,89454.0,89453.0,0.00727231]
[1765721473109,0.52820859,89454.0,89453.0,0.00727231]
[1765721474253,0.27973,89454.0,89453.0,0.00727231]
[1765721474468,0.01964,89454.0,89453.0,0.00888518]
[1765721474820,0.001,89454.0,89453.0,0.03438518]
[1765721475020,0.01117805,89461.0,89457.0,0.01117855]
[1765721475215,0.0111783,89459.0,89455.0,0.0111788]
[1765721475427,0.01117843,89458.0,89455.0,0.0111788]
[1765721475629,0.02763868,89456.0,89453.0,0.00361287]
[1765721475842,0.01646,89454.0,89453.0,0.00261287]
[1765721476212,0.04043,89454.0,89453.0,0.00161287]
[1765721477015,0.04043,89454.0,89453.0,0.00261287]
[1765721477016,0.04143,89454.0,89453.0,0.00261287]
[1765721477231,0.04243,89454.0,89453.0,0.00461287]
[1765721478229,0.04143,89454.0,89453.0,0.00361287]
[1765721478496,0.001,89454.0,89453.0,0.00461287]
[1765721478697,0.003,89454.0,89453.0,0.01936287]
[1765721478899,0.003,89454.0,89453.0,0.03411287]
[1765721480663,0.003,89454.0,89453.0,0.01936287]
[1765721480922,0.003,89454.0,89453.0,0.03411287]
[1765721481251,0.003,89454.0,89453.0,0.03438518]
[1765721485038,0.003,89454.0,89453.0,0.01963518]
[1765721485573,0.003,89454.0,89453.0,0.00488518]
[1765721490513,0.02743,89454.0,89453.0,0.00488518]
[1765721491227,0.01518,89454.0,89453.0,0.00488518]
[1765721493351,0.003,89454.0,89453.0,0.00488518]
[1765721493522,0.003,89454.0,89453.0,0.22846627]
[1765721493723,0.003,89454.0,89453.0,0.24321627]
[1765721493925,0.003,89454.0,89453.0,0.25796627]
[1765721495134,0.003,89454.0,89453.0,0.24321627]
[1765721497918,0.003,89454.0,89453.0,0.2543947]
[1765721498320,0.003,89454.0,89453.0,0.2691447]
[1765721498552,0.003,89454.0,89453.0,0.2396447]
[1765721498932,0.003,89454.0,89453.0,0.2543947]
[1765721499369,0.003,89454.0,89453.0,0.2691447]
[1765721500051,0.003,89454.0,89453.0,0.5598447]
[1765721500623,0.003,89454.0,89453.0,0.5303447]
[1765721508164,0.003,89454.0,89453.0,0.5450947]
[1765721508349,0.003,89454.0,89453.0,0.5598447]
[1765721508799,0.003,89454.0,89453.0,0.5303447]
[1765721513163,0.003,89454.0,89453.0,0.5450947]
[1765721516776,0.003,89454.0,89453.0,0.5598447]
[1765721519113,0.003,89454.0,89453.0,0.5450947]
[1765721522078,0.003,89454.0,89453.0,0.5303447]
[1765721522293,0.003,89454.0,89453.0,0.30676361]
[1765721522797,0.003,89454.0,89453.0,0.32151361]
[1765721522994,0.003,89454.0,89453.0,0.33626361]
[1765721538514,0.003,89454.0,89453.0,0.32151361]
[1765721539314,0.003,89454.0,89453.0,0.33626361]
[1765721546304,0.22353474,89472.0,89468.0,0.23472073]
[1765721546486,0.0111768,89471.0,89468.0,0.01117718]
[1765721546687,0.22353474,89472.0,89468.0,0.01117718]
[1765721546688,0.23471142,89472.0,89468.0,0.01117718]
[1765721547089,0.01216,89471.0,89468.0,0.01117718]
[1765721547306,0.0233368,89471.0,89466.0,0.01117743]
[1765721547516,0.0233368,89471.0,89468.0,0.001]
[1765721547925,0.0233368,89471.0,89468.0,0.002]
[1765721548130,0.24687491,89471.0,89468.0,0.001]
[1765721548329,0.02439,89470.0,89468.0,0.002]
[1765721548551,0.24887491,89471.0,89468.0,0.002]
[1765721548740,0.01117693,89470.0,89468.0,0.001]
[1765721550298,0.01117693,89470.0,89467.0,0.0111773]
[1765721550510,0.01217693,89470.0,89467.0,0.0111773]
[1765721550955,0.002,89470.0,89467.0,0.0111773]
[1765721551186,0.0233368,89471.0,89467.0,0.0111773]
[1765721551650,0.002,89470.0,89467.0,0.0111773]
[1765721552108,0.001,89470.0,89467.0,0.0111773]
[1765721552331,0.0233368,89471.0,89467.0,0.0111773]
[1765721553351,0.0243368,89471.0,89467.0,0.0121773]
[1765721553595,0.0243368,89471.0,89468.0,0.01117718]
[1765721553766,0.0253368,89471.0,89468.0,0.01117718]
[1765721554381,0.0233368,89471.0,89468.0,0.01117718]
[1765721554582,0.23470602,89474.0,89470.0,0.01855693]
[1765721554807,0.23470602,89474.0,89462.0,0.01475]
[1765721554808,0.23671416,89471.0,89468.0,0.001]
[1765721554969,0.22354063,89470.0,89468.0,0.001]
[1765721555168,0.22354063,89470.0,89468.0,0.0345571]
[1765721555369,0.05222,89469.0,89468.0,0.0345571]
[1765721556209,0.05222,89469.0,89468.0,0.0335571]
[1765721557553,0.05322,89469.0,89468.0,0.0345571]
[1765721558039,0.05422,89469.0,89468.0,0.0345571]
[1765721560881,0.002,89469.0,89468.0,0.0345571]
[1765721562865,0.22554111,89469.0,89468.0,0.0345571]
[1765721566618,0.25337111,89469.0,89468.0,0.0345571]
[1765721566778,0.27776111,89469.0,89468.0,0.0345571]
[1765721569036,0.002,89469.0,89468.0,0.0345571]
[1765721572143,0.05422,89469.0,89468.0,0.0345571]
[1765721586040,0.02983,89469.0,89468.0,0.0345571]
[1765721587677,0.05441,89469.0,89468.0,0.0345571]
[1765721591590,0.05441,89469.0,89468.0,0.001]
[1765721592666,0.08235263,89469.0,89468.0,0.001]
[1765721596839,0.01117855,89457.0,89454.0,0.00024205]
[1765721596998,0.22357492,89456.0,89454.0,0.00024205]
[1765721597203,0.01662,89455.0,89454.0,0.00024205]
[1765721597391,0.0412,89455.0,89454.0,0.00024205]
[1765721597789,0.0412,89455.0,89454.0,0.01142135]
[1765721597995,0.0412,89455.0,89454.0,0.01242135]
[1765721598604,0.0412,89455.0,89454.0,0.01142135]
[1765721599259,0.0422,89455.0,89454.0,0.01142135]
[1765721599989,0.0432,89455.0,89454.0,0.01242135]
[1765721600196,0.01862,89455.0,89454.0,0.01242135]
[1765721602246,0.0432,89455.0,89454.0,0.00124205]
[1765721604312,0.002,89455.0,89454.0,0.00124205]
[1765721604517,0.0432,89455.0,89454.0,0.00124205]
[1765721609648,0.002,89455.0,89454.0,0.00124205]
[1765721609846,0.002,89455.0,89454.0,0.01599205]
[1765721610174,0.002,89455.0,89454.0,0.02963303]
[1765721610941,0.002,89455.0,89454.0,0.00124205]
[1765721612873,0.26522609,89455.0,89454.0,0.00124205]
[1765721616545,0.22557609,89455.0,89454.0,0.00124205]
[1765721620235,0.24074609,89455.0,89454.0,0.00124205]
[1765721620467,0.26522609,89455.0,89454.0,0.00124205]
[1765721623712,0.24074609,89455.0,89454.0,0.00124205]
[1765721623930,0.22557609,89455.0,89454.0,0.00124205]
[1765721636083,0.002,89455.0,89454.0,0.00124205]
[1765721642166,0.05378,89455.0,89454.0,0.00124205]
[1765721643248,0.08172701,89455.0,89454.0,0.00124205]
[1765721643652,0.19379255,89455.0,89454.0,0.00124205]
[1765721644271,0.24281094,89455.0,89454.0,0.00024205]
[1765721644540,0.24181094,89455.0,89454.0,0.00024205]
[1765721644692,0.24281094,89455.0,89454.0,0.00524205]
[1765721644897,0.24381094,89455.0,89454.0,0.01024205]
[1765721645635,0.21586393,89455.0,89454.0,0.01024205]
[1765721646087,0.22610598,89455.0,89454.0,0.01024205]
[1765721646520,0.21586393,89455.0,89454.0,0.01024205]
[1765721647486,0.22610598,89455.0,89454.0,0.01024205]
[1765721649735,0.22510598,89455.0,89454.0,0.00524205]
[1765721649930,0.22410598,89455.0,89454.0,0.00024205]
[1765721650248,0.22610598,89455.0,89454.0,0.00824205]
[1765721651138,0.76100598,89455.0,89454.0,0.00824205]
[1765721651437,0.78511483,89455.0,89454.0,0.00824205]
[1765721653643,0.78311483,89455.0,89454.0,0.00024205]
[1765721653846,0.79456454,89455.0,89454.0,0.00324205]
[1765721654066,0.79556454,89455.0,89454.0,0.00624205]
[1765721654448,0.79456454,89455.0,89454.0,0.00324205]
[1765721654689,0.79456454,89455.0,89454.0,0.00224205]
[1765721655022,0.79556454,89455.0,89454.0,0.00424205]
[1765721655605,0.05001839,89448.0,89446.0,0.00078548]
[1765721655810,0.4024679,89447.0,89446.0,0.00078548]
[1765721655987,0.37451839,89447.0,89446.0,0.00078548]
[1765721656189,0.39799839,89447.0,89446.0,0.00078548]
[1765721656790,0.40247571,89447.0,89446.0,0.00078548]
[1765721656975,0.40247571,89447.0,89419.0,0.0004]
[1765721656976,0.2236636,89420.0,89419.0,0.0004]
[1765721657192,0.2669636,89420.0,89419.0,0.00046442]
[1765721657394,0.2904436,89420.0,89419.0,0.00046442]
[1765721659191,0.2934436,89420.0,89419.0,0.00146442]
[1765721659417,0.2954436,89420.0,89419.0,0.00246442]
[1765721685642,0.34546199,89420.0,89419.0,0.00246442]
[1765721686070,0.34993967,89420.0,89419.0,0.00352389]
[1765721690144,0.6218199,89420.0,89419.0,0.00352389]
[1765721690394,0.60461793,89420.0,89419.0,0.00352389]
[1765721690577,0.2736895,89417.0,89416.0,0.0004]
[1765721690944,0.31245776,89417.0,89416.0,0.00044743]
[1765721691071,0.33645776,89417.0,89416.0,0.00044743]
[1765721692713,0.34193626,89417.0,89416.0,0.00344743]
[1765721693156,0.331458,89417.0,89416.0,0.00344743]
[1765721693585,0.332458,89417.0,89416.0,0.00844743]
[1765721693788,0.42181061,89417.0,89416.0,0.00844743]
[1765721694357,0.332458,89417.0,89416.0,0.00844743]
[1765721696345,0.576658,89417.0,89416.0,0.00844743]
[1765721697109,0.99551963,89417.0,89416.0,1e-08]
[1765721697305,0.99551963,89417.0,89378.0,0.00844743]
[1765721697306,0.05001839,89391.0,89362.0,0.01857043]
[1765721697527,0.09439839,89391.0,89390.0,0.00044744]
[1765721697655,0.11734839,89391.0,89390.0,0.00044744]
[1765721697857,0.12182768,89391.0,89390.0,0.00044744]
[1765721698847,0.12282768,89391.0,89390.0,0.00044744]
[1765721699935,0.12582768,89391.0,89390.0,0.00144744]
[1765721700333,0.1537947,89391.0,89390.0,0.00144744]
[1765721700710,0.07580929,89391.0,89390.0,0.00144744]
[1765721700912,0.10377631,89391.0,89390.0,0.00144744]
[1765721702886,0.10377631,89391.0,89390.0,0.00208348]
[1765721704796,0.08613631,89391.0,89390.0,0.00208348]
[1765721705035,0.10377631,89391.0,89390.0,0.00208348]
[1765721709465,0.26586024,89391.0,89390.0,0.00208348]
[1765721709586,0.23789322,89391.0,89390.0,0.00208348]
[1765721712508,0.27379211,89376.0,89375.0,0.0004]
[1765721712718,0.32004211,89376.0,89375.0,0.00044747]
[1765721712902,0.34299211,89376.0,89375.0,0.00044747]
[1765721713204,0.34747232,89376.0,89375.0,0.00044747]
[1765721714201,0.34847232,89376.0,89375.0,0.00344747]
[1765721714866,0.33083232,89376.0,89375.0,0.00344747]
[1765721715109,0.34847232,89376.0,89375.0,0.00344747]
[1765721715336,0.34947232,89376.0,89375.0,0.00344747]
[1765721716294,0.29945393,89376.0,89375.0,0.00344747]
[1765721716693,0.27733372,89376.0,89375.0,0.00344747]
[1765721717285,0.27633372,89376.0,89375.0,0.00044747]
[1765721717476,0.27533372,89376.0,89375.0,0.00044747]
[1765721717681,0.27733372,89376.0,89375.0,0.00044747]
[1765721717839,0.28033372,89376.0,89375.0,0.00044747]
[1765721718244,0.28033372,89376.0,89375.0,0.00090192]
[1765721719212,0.33035211,89376.0,89375.0,0.00090192]
[1765721719347,0.33483208,89376.0,89375.0,0.00090192]
[1765721719756,0.33283208,89376.0,89375.0,0.00090192]
[1765721720158,0.33383208,89376.0,89375.0,0.00490192]
[1765721720580,0.33083208,89376.0,89375.0,0.00490192]
[1765721721113,0.33183208,89376.0,89375.0,0.00690192]
[1765721729515,0.28181369,89376.0,89375.0,0.00690192]
[1765721730680,0.28181369,89376.0,89375.0,0.00851479]
[1765721730915,0.27733372,89376.0,89375.0,0.00851479]
[1765721731093,0.05356,89376.0,89375.0,0.00851479]
[1765721731495,0.05356,89376.0,89375.0,0.00451479]
[1765721731496,0.05256,89376.0,89375.0,0.00451479]
[1765721731840,0.05156,89376.0,89375.0,0.00251479]
[1765721732114,0.02025,89376.0,89375.0,0.00351479]
[1765721732260,0.004,89376.0,89375.0,0.00351479]
[1765721732463,0.01225,89380.0,89377.0,0.01118856]
[1765721732682,0.01225,89380.0,89377.0,0.01280143]
[1765721733246,0.0111878,89383.0,89379.0,0.01118831]
[1765721733459,0.02723,89378.0,89377.0,0.00161287]
[1765721733661,0.25099871,89378.0,89377.0,0.00161287]
[1765721733774,0.27566871,89378.0,89377.0,0.00161287]
[1765721733980,0.0519,89378.0,89377.0,0.00161287]
[1765721734376,0.0519,89378.0,89377.0,0.22538408]
[1765721734833,0.0549,89378.0,89377.0,0.22738408]
[1765721735309,0.0549,89378.0,89377.0,0.22638408]
[1765721735804,0.0579,89378.0,89377.0,0.22738408]
[1765721736747,0.0579,89378.0,89377.0,0.00361287]
[1765721737346,0.28166871,89378.0,89377.0,0.00361287]
[1765721738362,0.29930871,89378.0,89377.0,0.002]
[1765721738824,0.29930871,89378.0,89377.0,0.00239384]
[1765721761519,0.07554,89378.0,89377.0,0.00239384]
[1765721762322,0.07554,89378.0,89377.0,0.00400671]
[1765721762545,0.006,89378.0,89377.0,0.00400671]
[1765721763091,0.006,89378.0,89377.0,0.01138671]
[1765721763678,0.006,89378.0,89377.0,0.00400671]
[1765721765873,0.006,89378.0,89377.0,0.01138671]
[1765721766869,0.006,89378.0,89377.0,0.04088671]
[1765721767822,0.00592168,89378.0,89377.0,0.04088671]
[1765721768024,0.00586462,89378.0,89377.0,0.04088671]
[1765721768655,0.00586462,89378.0,89377.0,0.05457584]
[1765721769211,0.01038,89391.0,89388.0,0.01118718]
[1765721769414,0.02427,89390.0,89388.0,0.01118718]
[1765721769656,0.01622,89389.0,89388.0,0.01118718]
[1765721770212,0.04049,89389.0,89385.0,0.01118755]
[1765721770433,0.02787,89386.0,89385.0,0.01118755]
[1765721770795,0.05214,89386.0,89385.0,0.01118755]
[1765721770998,0.05214,89386.0,89383.0,0.0111878]
[1765721771403,0.05214,89386.0,89385.0,0.001]
[1765721771608,0.05214,89386.0,89383.0,0.23494193]
[1765721771806,0.02787,89386.0,89383.0,0.2365548]
[1765721772124,0.02427,89385.0,89383.0,0.2365548]
[1765721773244,0.02427,89385.0,89383.0,0.2375548]
[1765721773423,0.02427,89385.0,89383.0,0.2365548]
[1765721773828,0.02527,89385.0,89383.0,0.2375548]
[1765721774234,0.02527,89385.0,89383.0,0.2385548]
[1765721774437,0.02527,89385.0,89383.0,0.2375548]
[1765721774810,0.02627,89385.0,89383.0,0.2385548]
[1765721775364,0.002,89385.0,89383.0,0.2385548]
[1765721778677,0.02427,89384.0,89383.0,0.2385548]
[1765721778894,0.04049,89384.0,89383.0,0.2385548]
[1765721779664,0.04049,89384.0,89383.0,0.2375548]
[1765721779864,0.05314,89384.0,89383.0,0.2385548]
[1765721780546,0.01265,89384.0,89383.0,0.2375548]
[1765721780760,0.05314,89384.0,89383.0,0.2375548]
[1765721780938,0.05514,89384.0,89383.0,0.2385548]
[1765721782086,0.05514,89384.0,89383.0,0.002]
[1765721784142,0.05314,89384.0,89383.0,0.001]
[1765721784527,0.22375619,89383.0,89382.0,0.00024235]
[1765721784727,0.26424619,89383.0,89382.0,0.00024235]
[1765721785633,0.26724619,89383.0,89382.0,0.00124235]
[1765721786000,0.26924619,89383.0,89382.0,0.00224235]
[1765721793343,0.26624619,89383.0,89382.0,0.00124235]
[1765721793544,0.26924619,89383.0,89382.0,0.00224235]
[1765721793691,0.26724619,89383.0,89382.0,0.00124235]
[1765721793892,0.27024619,89383.0,89382.0,0.00224235]
[1765721822822,0.32026458,89383.0,89382.0,0.00224235]
[1765721823355,0.32474446,89383.0,89382.0,0.00224235]
[1765721823860,0.32174446,89383.0,89382.0,0.00124235]
[1765721824404,0.32174446,89383.0,89382.0,0.00024235]
[1765721824405,0.31974446,89383.0,89382.0,0.00024235]
[1765721824613,0.32074446,89383.0,89382.0,0.00324235]
[1765721824824,0.33838446,89383.0,89382.0,0.00324235]
[1765721824966,0.33638446,89383.0,89382.0,0.00024235]
[1765721825417,0.33390458,89383.0,89382.0,0.00424235]
[1765721825868,0.33290458,89383.0,89382.0,0.00024235]
[1765721826219,0.33690458,89383.0,89382.0,0.00124235]
[1765721827669,0.33590458,89383.0,89382.0,0.00124235]
[1765721828053,0.33890458,89383.0,89382.0,0.00124235]
[1765721843034,0.28888619,89383.0,89382.0,0.00124235]
[1765721846453,0.06513,89383.0,89382.0,0.00285522]
[1765721847580,0.09309952,89383.0,89382.0,0.00285522]
[1765721847810,0.06513,89383.0,89382.0,0.00285522]
[1765721849421,0.09309952,89383.0,89382.0,0.00285522]
[1765721857170,0.06513,89383.0,89382.0,0.00124235]
[1765721857370,0.09309952,89383.0,89382.0,0.00124235]
[1765721859785,0.06513,89383.0,89382.0,0.00124235]
[1765721860317,0.09309952,89383.0,89382.0,0.00124235]
[1765721860481,0.06513,89383.0,89382.0,0.00124235]
[1765721860893,0.09309952,89383.0,89382.0,0.00124235]
[1765721870325,0.06513,89383.0,89382.0,0.00285522]
[1765721872264,0.09309952,89383.0,89382.0,0.00285522]
[1765721873745,0.09309952,89383.0,89382.0,0.00124235]
[1765721874159,0.14311791,89383.0,89382.0,0.00124235]
[1765721876304,0.25518345,89383.0,89382.0,0.00124235]
[1765721876512,0.22721393,89383.0,89382.0,0.00124235]
[1765721876708,0.2316936,89383.0,89382.0,0.00124235]
[1765721887633,0.11962806,89383.0,89382.0,0.00124235]
[1765721887928,0.14759758,89383.0,89382.0,0.00124235]
[1765721888349,0.12995758,89383.0,89382.0,0.00124235]
[1765721888555,0.14759758,89383.0,89382.0,0.00124235]
[1765721890101,0.09757919,89383.0,89382.0,0.00124235]
[1765721890308,0.09757919,89383.0,89382.0,0.00285522]
[1765721890309,0.04533967,89383.0,89382.0,0.00285522]
[1765721890474,0.06435,89383.0,89382.0,0.00285522]
[1765721890836,0.09231952,89383.0,89382.0,0.00285522]
[1765721892394,0.06435,89383.0,89382.0,0.00285522]
[1765721894123,0.09231952,89383.0,89382.0,0.00285522]
[1765721895481,0.09231952,89383.0,89382.0,0.00124235]
[1765721900444,0.06435,89383.0,89382.0,0.00124235]
[1765721901019,0.02464,89383.0,89382.0,0.00124235]
[1765721901452,0.02464,89383.0,89382.0,0.00285522]
[1765721902085,0.007,89383.0,89382.0,0.00285522]
[1765721902282,0.07467952,89383.0,89382.0,0.00124235]
[1765721902674,0.04671,89383.0,89382.0,0.00124235]
[1765721902877,0.04371,89383.0,89382.0,0.00124235]
[1765721903280,0.02122,89383.0,89382.0,0.00124235]
[1765721903479,0.001,89383.0,89382.0,0.00024235]
[1765721903891,0.003,89383.0,89382.0,0.00124235]
[1765721907274,0.003,89383.0,89382.0,0.00285522]
[1765721909843,0.04304,89383.0,89382.0,0.00285522]
[1765721918843,0.05437,89383.0,89382.0,0.00285522]
[1765721920002,0.08233952,89383.0,89382.0,0.00285522]
[1765721923028,0.05437,89383.0,89382.0,0.00285522]
[1765721925406,0.08233952,89383.0,89382.0,0.00285522]
[1765721926391,0.05437,89383.0,89382.0,0.00285522]
[1765721926996,0.08233952,89383.0,89382.0,0.00285522]
[1765721928897,0.05437,89383.0,89382.0,0.00285522]
[1765721930519,0.08233952,89383.0,89382.0,0.00124235]
[1765721932390,0.05437,89383.0,89382.0,0.00124235]
[1765721934612,0.02997,89383.0,89382.0,0.00124235]
[1765721934814,0.05437,89383.0,89382.0,0.00124235]
[1765721935396,0.08137072,89383.0,89382.0,0.00124235]
[1765721935944,0.07160794,89383.0,89382.0,0.00124235]
[1765721936548,0.07997272,89383.0,89382.0,0.00124235]
[1765721936750,0.05437,89383.0,89382.0,0.00124235]
[1765721937823,0.03003,89383.0,89382.0,0.00124235]
[1765721938032,0.05462,89383.0,89382.0,0.00124235]
[1765721941845,0.08258952,89383.0,89382.0,0.00124235]
[1765721941986,0.10022952,89383.0,89382.0,0.00124235]
[1765721942185,0.26231345,89383.0,89382.0,0.00124235]
[1765721942423,0.23434393,89383.0,89382.0,0.00124235]
[1765721945656,0.12227839,89383.0,89382.0,0.00124235]
[1765721945857,0.07226,89383.0,89382.0,0.00124235]
[1765721946272,0.05462,89383.0,89382.0,0.00124235]
[1765721955343,0.05462,89383.0,89382.0,0.00285522]
[1765721955642,0.003,89383.0,89382.0,0.00285522]
[1765721956602,0.003,89383.0,89382.0,0.03235522]
[1765721957194,0.003,89383.0,89382.0,0.32305522]
[1765721957595,0.003,89383.0,89382.0,0.3566417]
[1765721957834,0.001,89383.0,89382.0,0.3556417]
[1765721958161,0.002,89383.0,89382.0,0.3566417]
[1765721958338,0.001,89383.0,89382.0,0.3566417]
[1765721958863,0.002,89383.0,89382.0,0.3566417]
[1765721960541,0.002,89383.0,89382.0,1.1623417]
[1765721960760,0.002,89383.0,89382.0,0.4894417]
[1765721961073,0.002,89383.0,89382.0,0.3418917]
[1765721961266,0.001,89383.0,89382.0,0.3556417]
[1765721961463,0.02459,89397.0,89395.0,0.22372471]
[1765721963061,0.02559,89397.0,89395.0,0.22372471]
[1765721963650,0.02659,89397.0,89395.0,0.22472471]
[1765721964378,0.002,89397.0,89395.0,0.22633758]
[1765721966700,0.002,89397.0,89396.0,0.0295]
[1765721966906,0.002,89397.0,89396.0,0.03111287]
[1765721967751,0.01118493,89406.0,89402.0,0.01118543]
[1765721968007,0.01204,89407.0,89404.0,0.01118518]
[1765721968211,0.22368806,89411.0,89407.0,0.0111848]
[1765721968390,0.01204,89412.0,89409.0,0.01118455]
[1765721969045,0.01204,89412.0,89409.0,0.01123202]
[1765721969462,0.01204,89412.0,89410.0,0.22368627]
[1765721969669,0.01204,89412.0,89409.0,0.01284489]
[1765721969792,0.02287,89411.0,89409.0,0.00166034]
[1765721970009,0.22368862,89410.0,89409.0,0.00166034]
[1765721970222,0.2469083,89412.0,89409.0,0.00166034]
[1765721970418,0.22368844,89411.0,89409.0,0.00166034]
[1765721970634,0.22368844,89411.0,89410.0,0.001]
[1765721971070,0.24655844,89411.0,89409.0,0.00266034]
[1765721971282,0.02322418,89412.0,89409.0,0.00266034]
[1765721971283,0.01604,89412.0,89409.0,0.00266034]
[1765721971499,0.02522418,89412.0,89409.0,0.01384489]
[1765721971979,0.003,89411.0,89410.0,0.001]
[1765721972201,0.02522418,89412.0,89409.0,0.01384489]
[1765721972490,0.002,89412.0,89409.0,0.23753412]
[1765721972664,0.005,89412.0,89410.0,0.22368615]
[1765721972865,0.01118393,89414.0,89410.0,0.23487058]
[1765721973046,0.002,89411.0,89410.0,0.23487058]
[1765721973252,0.002,89411.0,89410.0,0.23648345]
[1765721973479,0.01118405,89413.0,89410.0,0.23648345]
[1765721974037,0.003,89412.0,89410.0,0.23748345]
[1765721974187,0.003,89411.0,89410.0,0.23848345]
[1765721974396,0.003,89411.0,89410.0,0.00261287]
[1765721974593,0.01764,89415.0,89411.0,0.0111843]
[1765721974594,0.01118393,89414.0,89411.0,0.0111843]
[1765721974796,0.006,89413.0,89411.0,0.0111843]
[1765721975240,0.003,89413.0,89411.0,0.0111843]
[1765721976098,0.003,89413.0,89411.0,0.0121843]
[1765721976305,0.003,89413.0,89411.0,0.23586811]
[1765721976505,0.003,89413.0,89411.0,0.23748098]
[1765721977113,0.006,89413.0,89411.0,0.23848098]
[1765721978777,0.03914,89412.0,89411.0,0.00361287]
[1765721979376,0.03914,89412.0,89411.0,0.002]
[1765721980144,0.03914,89412.0,89411.0,0.001]
[1765721980351,0.04214,89412.0,89411.0,0.002]
[1765721980498,0.04214,89412.0,89411.0,0.001]
[1765721980924,0.04514,89412.0,89411.0,0.002]
[1765721995404,0.02227,89412.0,89411.0,0.002]
[1765721995605,0.04514,89412.0,89411.0,0.002]
[1765721998349,0.06278,89412.0,89411.0,0.002]
[1765722001862,0.07454303,89412.0,89411.0,0.002]
[1765722002063,0.09074045,89412.0,89411.0,0.002]
[1765722003330,0.08774045,89412.0,89411.0,0.001]
[1765722003515,0.22368612,89411.0,89409.0,4.747e-05]
[1765722003650,0.05523107,89410.0,89409.0,4.747e-05]
[1765722003849,0.07887107,89410.0,89409.0,4.747e-05]
[1765722004544,0.22368612,89411.0,89409.0,4.747e-05]
[1765722004805,0.007,89411.0,89409.0,0.22635108]
[1765722005205,0.01118418,89412.0,89409.0,0.00166034]
[1765722005408,0.01118418,89412.0,89409.0,0.01284489]
[1765722005607,0.01118418,89412.0,89409.0,0.01384489]
[1765722005608,0.002,89410.0,89409.0,0.01384489]
[1765722006832,0.005,89410.0,89409.0,0.01384489]
[1765722007000,0.01118405,89413.0,89410.0,0.23487305]
[1765722007429,0.002,89412.0,89410.0,0.23648592]
[1765722007839,0.01118393,89414.0,89410.0,0.23648592]
[1765722008039,0.01118405,89413.0,89410.0,0.00161287]
[1765722008264,0.01318405,89413.0,89410.0,0.00261287]
[1765722008446,0.002,89412.0,89410.0,0.23748591]
[1765722008652,0.002,89412.0,89410.0,0.23648591]
[1765722008834,0.02564,89412.0,89410.0,0.23648591]
[1765722009183,0.02564,89412.0,89410.0,0.23748591]
[1765722009399,0.002,89412.0,89410.0,0.23748591]
[1765722009761,0.002,89414.0,89410.0,0.23748591]
[1765722009762,0.002,89414.0,89413.0,0.22368112]
[1765722010162,0.002,89414.0,89413.0,0.24004399]
[1765722010365,0.01764,89419.0,89418.0,0.22366861]
[1765722010567,0.01764,89419.0,89418.0,0.22528148]
[1765722011598,0.0121,89424.0,89421.0,0.23484278]
[1765722011799,0.0121,89424.0,89423.0,0.2236561]
[1765722012004,0.0288223,89427.0,89423.0,0.2236561]
[1765722012005,0.01764,89427.0,89423.0,0.00161287]
[1765722012207,0.0288223,89427.0,89424.0,0.01118268]
[1765722012416,0.0288223,89427.0,89424.0,0.01279555]